fUSD/lending_fUSD_20250828
["ID","MTS","AMOUNT","RATE_DAILY","PERIOD"]
[381837969,1756366030787,207155.20391204,0.0003,120]
[381837975,1756366111281,2138120.89640289,0.0003,120]
[381837986,1756366205663,-237.59309317,0.00015,2]
[381837993,1756366231565,-12.40690683,0.00015,2]
[381837995,1756366231575,-500.0,0.000177,6]
[381837997,1756366231585,-172.80038974,0.000178,2]
[381837999,1756366231595,-96.54586295,0.000178,2]
[381838000,1756366231607,-113.88109479,0.000178,2]
[381838001,1756366231616,-1734.8467831,0.000178,2]
[381838002,1756366231626,-1100.0,0.000178,6]
[381838003,1756366231635,-1734.84678308,0.00017811,2]
[381838004,1756366231645,-300.0,0.00017899,2]
[381838005,1756366231655,-300.0,0.00017899,2]
[381838006,1756366231665,-150.0,0.00017899,2]
[381838007,1756366231674,-1200.0,0.00017899,2]
[381838008,1756366231684,-1700.0,0.000179,6]
[381838009,1756366231693,-1421.5245584,0.000179,2]
[381838010,1756366231958,-2084.68811941,0.000179,2]
[381838011,1756366231970,-70575.35493887,0.000179,2]
[381838012,1756366231981,-5506.5,0.000179,2]
[381838046,1756366237600,-1734.84678308,0.00017822,2]
[381838047,1756366237610,-196.12816863,0.0001789,2]
[381838048,1756366237619,-2295772.15275446,0.000179,2]
[381838049,1756366237629,-4049.49337296,0.000179,2]
[381838050,1756366237639,-157.80765905,0.000179,3]
[381838051,1756366237648,-259.39862515,0.000179,2]
[381838052,1756366237657,-500.0,0.00017973,2]
[381838053,1756366237667,-500.0,0.00017973,2]
[381838054,1756366237676,-500.0,0.00017973,2]
[381838055,1756366237685,-400.0,0.00017999,2]
[381838056,1756366237695,-400.0,0.00017999,2]
[381838057,1756366237704,-544.79,0.00017999,2]
[381838058,1756366237714,-400.0,0.00017999,2]
[381838059,1756366237723,-400.0,0.00017999,2]
[381838060,1756366237736,-504.59,0.00017999,2]
[381838061,1756366237746,-400.0,0.00017999,2]
[381838062,1756366237756,-400.0,0.00017999,2]
[381838063,1756366237766,-400.0,0.00017999,2]
[381838064,1756366237775,-214.30517291,0.00017999,2]
[381838065,1756366237785,-303.7626565,0.00017999,2]
[381838066,1756366237794,-580.82071066,0.00017999,2]
[381838067,1756366237804,-9260.32,0.00018,2]
[381838068,1756366237814,-41225.49971309,0.00018,2]
[381838069,1756366237823,-1586.53020095,0.00018,2]
[381838070,1756366237833,-1707672.35152131,0.00018,2]
[381838071,1756366237843,-204411.41349382,0.00018,2]
[381838072,1756366237852,-1319511.66464461,0.00018,2]
[381838074,1756366237864,-3680.38125932,0.00018,2]
[381838076,1756366237874,-53490.64160781,0.00018,2]
[381838077,1756366237886,-837.64,0.00018,2]
[381838078,1756366237896,-575.30635287,0.00018,2]
[381838080,1756366237907,-2301.31926331,0.00018,2]
[381838081,1756366237919,-544.4,0.00018,2]
[381838082,1756366237930,-431.35830311,0.00018,2]
[381838083,1756366237945,-555.05478517,0.00018,2]
[381838236,1756366239488,-422.48649554,0.00018,2]
[381838238,1756366239499,-567.3,0.00018,2]
[381838247,1756366239576,-1675.05793492,0.00018,2]
[381838256,1756366239654,-1383.38994006,0.00018,2]
[381838543,1756366242616,-1734.84678308,0.00017833,2]
[381838545,1756366242626,-1612.65163575,0.00018,2]
[381838860,1756366245664,-1174.9999995,0.00017844,2]
[381838885,1756366245890,-420.11592029,0.00017844,2]
[381838887,1756366245900,-139.73086329,0.00017844,2]
[381838889,1756366245908,-400.0,0.00017899,2]
[381838892,1756366245917,-3636.88525026,0.00018,2]
[381838894,1756366245928,-12586.64046561,0.00018,2]
[381838896,1756366245938,-3954.24971516,0.00018,2]
[381839366,1756367031648,-155.1,0.00013699,2]
[381839367,1756367034199,-150.0,0.00014199,3]
[381839388,1756367431703,-1200.0,0.00016999,2]
[381839390,1756367431715,-1386.87086197,0.00017,2]
[381839392,1756367431727,-255.77013803,0.00017,2]
[381839394,1756367431736,-588.58774369,0.00017,2]
[381839418,1756367431997,-1427.87230759,0.00017,2]
[381839420,1756367432009,-515.72261684,0.00017,2]
[381839449,1756367437841,-10303.35736818,0.00017,2]
[381839450,1756367437851,-666.0,0.00017115,3]
[381839451,1756367437860,-1852.42,0.00017245,2]
[381839452,1756367437870,-250.0,0.00017287,2]
[381839453,1756367437879,-160.0,0.0001737,7]
[381839454,1756367437888,-150.0,0.00017375,2]
[381839455,1756367437898,-2751.0,0.00017483,2]
[381839456,1756367437907,-1100.83441653,0.00017561,2]
[381839457,1756367437918,-363.09723101,0.00017561,2]
[381839458,1756367437930,-2457.24991187,0.00017561,2]
[381839459,1756367437941,-1288.03844059,0.00017561,2]
[381839460,1756367437951,-150.99,0.000178,2]
[381839461,1756367437960,-209.43225674,0.000178,4]
[381839646,1756367439807,-90.55774326,0.000178,4]
[381839648,1756367439817,-150.99,0.000178,2]
[381839650,1756367439827,-46604.29,0.000178,2]
[381839652,1756367439836,-400.0,0.000178,6]
[381839654,1756367439846,-400.0,0.00017899,2]
[381839656,1756367439855,-400.0,0.00017899,2]
[381839658,1756367439864,-400.0,0.00017899,2]
[381839660,1756367439873,-400.0,0.00017899,2]
[381839662,1756367439882,-400.0,0.00017899,2]
[381839664,1756367439891,-400.0,0.00017899,2]
[381839666,1756367439901,-163.007,0.00017899,2]
[381839668,1756367439910,-1325.076,0.00017899,2]
[381839670,1756367439919,-400.0,0.00017899,2]
[381839672,1756367439928,-400.0,0.00017899,2]
[381839674,1756367439937,-400.0,0.00017899,2]
[381839676,1756367439946,-400.0,0.00017899,2]
[381839678,1756367439955,-400.0,0.00017899,2]
[381839680,1756367439965,-400.0,0.00017899,2]
[381839682,1756367439974,-542.61953638,0.00017899,2]
[381839684,1756367439983,-283.87907294,0.00017899,2]
[381839686,1756367439993,-400.0,0.00017899,2]
[381839688,1756367440002,-773.70436737,0.00017899,2]
[381839689,1756367440011,-400.0,0.00017899,2]
[381839691,1756367440021,-400.0,0.00017899,2]
[381839693,1756367440030,-400.0,0.00017899,2]
[381839696,1756367440040,-2549.6,0.00017899,2]
[381839697,1756367440049,-1242.59,0.00017899,2]
[381839699,1756367440058,-400.0,0.00017899,2]
[381839702,1756367440068,-181.38115962,0.000179,2]
[381839704,1756367440078,-162.97116817,0.000179,2]
[381839706,1756367440087,-279.27080279,0.000179,2]
[381839708,1756367440096,-800.0,0.000179,6]
[381839709,1756367440105,-3178.9261885,0.000179,2]
[381839711,1756367440114,-274.39538015,0.000179,2]
[381839713,1756367440123,-294.5209697,0.00017959,2]
[381839715,1756367440132,-1000.0,0.00017964,2]
[381839716,1756367440141,-1000.0,0.00017964,2]
[381839718,1756367440150,-167.73,0.00017965,2]
[381839720,1756367440161,-500.0,0.00017973,2]
[381839722,1756367440170,-502.86388625,0.00017973,2]
[381839724,1756367440179,-150.01362104,0.00017997,2]
[381839725,1756367440188,-201.69104241,0.00017997,2]
[381839727,1756367440197,-87757.74653246,0.00017998,2]
[381839729,1756367440206,-400.0,0.00017999,2]
[381839731,1756367440215,-400.0,0.00017999,2]
[381839733,1756367440224,-400.0,0.00017999,2]
[381839735,1756367440233,-400.0,0.00017999,2]
[381839736,1756367440242,-387.87,0.00017999,2]
[381839738,1756367440251,-540.48,0.00017999,2]
[381839740,1756367440260,-400.0,0.00017999,2]
[381839742,1756367440269,-265.75,0.00017999,2]
[381839743,1756367440278,-400.0,0.00017999,2]
[381839745,1756367440289,-289.08,0.00017999,2]
[381839747,1756367440298,-400.0,0.00017999,2]
[381839749,1756367440307,-400.0,0.00017999,2]
[381839751,1756367440316,-400.0,0.00017999,2]
[381839752,1756367440327,-400.0,0.00017999,2]
[381839754,1756367440336,-166.6,0.00017999,2]
[381839756,1756367440345,-399.36,0.00017999,2]
[381839758,1756367440355,-400.0,0.00017999,2]
[381839760,1756367440364,-187.15,0.00017999,2]
[381839762,1756367440373,-305.44104577,0.00017999,2]
[381839763,1756367440382,-400.0,0.00017999,2]
[381839765,1756367440391,-182.39205736,0.00017999,2]
[381839767,1756367440400,-400.0,0.00017999,2]
[381839769,1756367440409,-400.0,0.00017999,2]
[381839771,1756367440418,-404.83063401,0.00017999,2]
[381839772,1756367440426,-278.69,0.00017999,2]
[381839774,1756367440435,-400.0,0.00017999,2]
[381839776,1756367440445,-400.0,0.00017999,2]
[381839778,1756367440454,-400.0,0.00017999,2]
[381839780,1756367440463,-400.0,0.00017999,2]
[381839781,1756367440472,-422.10634105,0.00017999,2]
[381839783,1756367440481,-400.0,0.00017999,2]
[381839785,1756367440491,-1173.69,0.00017999,2]
[381839787,1756367440500,-500.0,0.00017999,2]
[381839789,1756367440509,-229.25,0.00017999,2]
[381839791,1756367440518,-400.0,0.00017999,2]
[381839793,1756367440528,-400.0,0.00017999,2]
[381839795,1756367440537,-400.0,0.00017999,2]
[381839796,1756367440546,-409.62,0.00017999,2]
[381839798,1756367440555,-400.0,0.00017999,2]
[381839800,1756367440564,-274.45120239,0.00017999,2]
[381839802,1756367440576,-183.15,0.00017999,2]
[381839803,1756367440585,-400.0,0.00017999,2]
[381839805,1756367440594,-400.0,0.00017999,2]
[381839807,1756367440603,-400.0,0.00017999,2]
[381839809,1756367440613,-400.0,0.00017999,2]
[381839811,1756367440622,-400.0,0.00017999,2]
[381839812,1756367440631,-621.68,0.00017999,2]
[381839814,1756367440640,-418.49,0.00017999,2]
[381839816,1756367440649,-190.82798425,0.00017999,2]
[381839818,1756367440661,-453.0,0.00017999,2]
[381839820,1756367440671,-400.0,0.00017999,2]
[381839821,1756367440680,-400.0,0.00017999,2]
[381839823,1756367440690,-378.49,0.00017999,2]
[381839825,1756367440700,-400.0,0.00017999,2]
[381839827,1756367440710,-347.83,0.00017999,2]
[381839829,1756367440720,-240.14562543,0.00017999,2]
[381839831,1756367440729,-400.0,0.00017999,2]
[381839833,1756367440740,-400.0,0.00017999,2]
[381839834,1756367440753,-400.0,0.00017999,2]
[381839836,1756367440764,-400.0,0.00017999,2]
[381839838,1756367440773,-400.0,0.00017999,2]
[381839840,1756367440782,-489.12,0.00017999,2]
[381839842,1756367440797,-449.33,0.00017999,2]
[381839844,1756367440806,-400.0,0.00017999,2]
[381839846,1756367440815,-246.74,0.00017999,2]
[381839848,1756367440828,-400.0,0.00017999,2]
[381839850,1756367440837,-384.16,0.00017999,2]
[381839851,1756367440847,-166.45,0.00017999,2]
[381839853,1756367440856,-349.49311647,0.00017999,2]
[381839855,1756367440866,-455.33,0.00017999,2]
[381839857,1756367440875,-286.28,0.00017999,2]
[381839859,1756367440884,-527.10658101,0.00017999,2]
[381839861,1756367440894,-302.43444728,0.00017999,2]
[381839863,1756367440904,-400.0,0.00017999,2]
[381839864,1756367440913,-400.0,0.00017999,2]
[381839866,1756367440923,-277.45661984,0.00017999,2]
[381839868,1756367440933,-400.0,0.00017999,2]
[381839870,1756367440942,-511.55294658,0.00017999,2]
[381839872,1756367440951,-400.0,0.00017999,2]
[381839874,1756367440960,-400.0,0.00017999,2]
[381839876,1756367440970,-400.0,0.00017999,2]
[381839878,1756367440979,-400.0,0.00017999,2]
[381839879,1756367440989,-400.0,0.00017999,2]
[381839881,1756367440998,-400.0,0.00017999,2]
[381839883,1756367441008,-400.0,0.00017999,2]
[381839885,1756367441018,-400.0,0.00017999,2]
[381839887,1756367441028,-153.50757692,0.00017999,2]
[381839889,1756367441037,-400.0,0.00017999,2]
[381839891,1756367441047,-450.76398552,0.00017999,2]
[381839893,1756367441056,-400.0,0.00017999,2]
[381839895,1756367441069,-503.74,0.00017999,2]
[381839897,1756367441080,-400.0,0.00017999,2]
[381839898,1756367441090,-350.71,0.00017999,2]
[381839900,1756367441099,-400.0,0.00017999,2]
[381839902,1756367441109,-400.0,0.00017999,2]
[381839904,1756367441118,-400.0,0.00017999,2]
[381839906,1756367441127,-400.0,0.00017999,2]
[381839908,1756367441137,-400.0,0.00017999,2]
[381839909,1756367441146,-490.48,0.00017999,2]
[381839911,1756367441155,-555.99,0.00017999,2]
[381839913,1756367441165,-400.0,0.00017999,2]
[381839915,1756367441174,-400.0,0.00017999,2]
[381839917,1756367441183,-400.0,0.00017999,2]
[381839919,1756367441194,-400.0,0.00017999,2]
[381839921,1756367441203,-471.76,0.00017999,2]
[381839923,1756367441212,-400.0,0.00017999,2]
[381839924,1756367441223,-400.0,0.00017999,2]
[381839926,1756367441232,-400.0,0.00017999,2]
[381839928,1756367441242,-400.0,0.00017999,2]
[381839930,1756367441251,-478.61,0.00017999,2]
[381839951,1756367441467,-455.74,0.00017999,2]
[381839952,1756367441477,-400.0,0.00017999,2]
[381839954,1756367441487,-400.0,0.00017999,2]
[381839956,1756367441497,-400.0,0.00017999,2]
[381839958,1756367441506,-400.0,0.00017999,2]
[381839960,1756367441515,-400.0,0.00017999,2]
[381839962,1756367441524,-400.0,0.00017999,2]
[381839964,1756367441534,-400.0,0.00017999,2]
[381839966,1756367441543,-400.0,0.00017999,2]
[381839967,1756367441552,-400.0,0.00017999,2]
[381839969,1756367441562,-400.0,0.00017999,2]
[381839971,1756367441572,-400.0,0.00017999,2]
[381839973,1756367441582,-400.0,0.00017999,2]
[381839975,1756367441591,-176.82,0.00017999,2]
[381839977,1756367441600,-400.0,0.00017999,2]
[381839979,1756367441609,-400.0,0.00017999,2]
[381839981,1756367441619,-400.0,0.00017999,2]
[381839983,1756367441631,-470.8,0.00017999,2]
[381839984,1756367441640,-400.0,0.00017999,2]
[381839986,1756367441649,-434.18,0.00017999,2]
[381839988,1756367441658,-417.01,0.00017999,2]
[381839990,1756367441668,-531.65,0.00017999,2]
[381839992,1756367441677,-400.0,0.00017999,2]
[381839994,1756367441686,-402.17894982,0.00017999,2]
[381839996,1756367441695,-400.0,0.00017999,2]
[381839998,1756367441704,-400.0,0.00017999,2]
[381839999,1756367441716,-400.0,0.00017999,2]
[381840001,1756367441725,-500.97,0.00017999,2]
[381840003,1756367441735,-400.0,0.00017999,2]
[381840005,1756367441745,-244.5,0.00017999,2]
[381840007,1756367441754,-363.07,0.00017999,2]
[381840009,1756367441763,-514.62,0.00017999,2]
[381840010,1756367441773,-400.0,0.00017999,2]
[381840012,1756367441782,-400.0,0.00017999,2]
[381840014,1756367441792,-400.0,0.00017999,2]
[381840016,1756367441801,-400.0,0.00017999,2]
[381840018,1756367441810,-400.0,0.00017999,2]
[381840020,1756367441819,-400.0,0.00017999,2]
[381840022,1756367441830,-527.66,0.00017999,2]
[381840023,1756367441839,-400.0,0.00017999,2]
[381840025,1756367441850,-400.0,0.00017999,2]
[381840027,1756367441860,-400.0,0.00017999,2]
[381840029,1756367441869,-400.0,0.00017999,2]
[381840031,1756367441878,-400.0,0.00017999,2]
[381840033,1756367441888,-400.0,0.00017999,2]
[381840034,1756367441897,-400.0,0.00017999,2]
[381840036,1756367441906,-549.47711908,0.00017999,2]
[381840038,1756367441916,-400.0,0.00017999,2]
[381840040,1756367441926,-400.0,0.00017999,2]
[381840042,1756367441935,-356.7809539,0.00017999,2]
[381840044,1756367441945,-400.0,0.00017999,2]
[381840046,1756367441954,-298.91,0.00017999,2]
[381840048,1756367441963,-400.0,0.00017999,2]
[381840050,1756367441973,-260.33,0.00017999,2]
[381840052,1756367441982,-400.0,0.00017999,2]
[381840053,1756367441992,-400.0,0.00017999,2]
[381840055,1756367442001,-400.0,0.00017999,2]
[381840057,1756367442011,-695.46,0.00017999,2]
[381840059,1756367442020,-400.0,0.00017999,2]
[381840061,1756367442031,-400.0,0.00017999,2]
[381840063,1756367442043,-247.32,0.00017999,2]
[381840065,1756367442052,-400.0,0.00017999,2]
[381840066,1756367442061,-400.0,0.00017999,2]
[381840068,1756367442071,-400.0,0.00017999,2]
[381840070,1756367442081,-400.0,0.00017999,2]
[381840072,1756367442090,-400.0,0.00017999,2]
[381840074,1756367442100,-400.0,0.00017999,2]
[381840076,1756367442109,-400.0,0.00017999,2]
[381840078,1756367442119,-400.0,0.00017999,2]
[381840080,1756367442129,-526.15,0.00017999,2]
[381840082,1756367442138,-196.99474678,0.00017999,2]
[381840083,1756367442147,-400.0,0.00017999,2]
[381840085,1756367442157,-511.8,0.00017999,2]
[381840087,1756367442166,-400.0,0.00017999,2]
[381840089,1756367442175,-400.0,0.00017999,2]
[381840091,1756367442184,-400.0,0.00017999,2]
[381840093,1756367442193,-437.15,0.00017999,2]
[381840095,1756367442202,-158.30643403,0.00017999,2]
[381840096,1756367442211,-400.0,0.00017999,2]
[381840098,1756367442221,-400.0,0.00017999,2]
[381840100,1756367442231,-400.0,0.00017999,2]
[381840102,1756367442240,-539.47740631,0.00017999,2]
[381840104,1756367442249,-164.67,0.00017999,2]
[381840106,1756367442259,-400.0,0.00017999,2]
[381840108,1756367442268,-400.0,0.00017999,2]
[381840110,1756367442278,-400.0,0.00017999,2]
[381840111,1756367442287,-305.33,0.00017999,2]
[381840113,1756367442296,-400.0,0.00017999,2]
[381840115,1756367442305,-400.0,0.00017999,2]
[381840117,1756367442315,-400.0,0.00017999,2]
[381840119,1756367442324,-267.91256924,0.00017999,2]
[381840121,1756367442334,-400.0,0.00017999,2]
[381840123,1756367442343,-400.0,0.00017999,2]
[381840124,1756367442352,-400.0,0.00017999,2]
[381840126,1756367442362,-400.0,0.00017999,2]
[381840128,1756367442372,-507.0404266,0.00017999,2]
[381840130,1756367442381,-323.87,0.00017999,2]
[381840132,1756367442390,-400.0,0.00017999,2]
[381840134,1756367442399,-400.0,0.00017999,2]
[381840136,1756367442408,-400.0,0.00017999,2]
[381840138,1756367442418,-400.0,0.00017999,2]
[381840139,1756367442427,-311.2226853,0.00017999,2]
[381840141,1756367442436,-400.0,0.00017999,2]
[381840143,1756367442446,-400.0,0.00017999,2]
[381840145,1756367442455,-227.21,0.00017999,2]
[381840147,1756367442464,-308.40829011,0.00017999,2]
[381840149,1756367442473,-400.0,0.00017999,2]
[381840151,1756367442482,-400.0,0.00017999,2]
[381840153,1756367442492,-400.0,0.00017999,2]
[381840154,1756367442501,-14475.3410179,0.00018,2]
[381840157,1756367442517,-750.0,0.00018,2]
[381840163,1756367442556,-737.98888059,0.00018,2]
[381840166,1756367442567,-2265.4,0.00018,2]
[381840185,1756367442751,-773.75457039,0.00018,2]
[381840187,1756367442763,-252.65863812,0.00018,2]
[381840194,1756367442920,-4687.42877466,0.00018,2]
[381840195,1756367442933,-32494.22869338,0.00018,2]
[381840494,1756367445721,-295.27588629,0.000179,2]
[381840497,1756367445730,-2641.8464766,0.00018,2]
[381840506,1756367445775,-289.35124437,0.00018,2]
[381840537,1756367446065,-1156.83533411,0.00018,2]
[381840641,1756367929893,-169.79,0.00013699,2]
[381840644,1756368003651,-150.0,0.00014199,3]
[381840645,1756368003666,-150.0,0.00014199,2]
[381840646,1756368003969,-170.66506187,0.00014199,2]
[381840647,1756368007843,-179.33493813,0.00014199,2]
[381840648,1756368007871,-21.85046253,0.00014199,2]
[381840649,1756368012207,-218.18669739,0.00014199,2]
[381840650,1756368012606,-42.39943128,0.00014199,2]
[381840651,1756368012632,-207.60056872,0.00015,2]
[381840652,1756368014702,-42.39943128,0.00015,2]
[381840653,1756368014730,-125.60056872,0.00015619,2]
[381840654,1756368017623,-124.39943128,0.00015619,2]
[381840655,1756368017648,-150.0,0.00015619,2]
[381840659,1756368195783,-274.93541838,0.00013699,2]
[381840660,1756368198623,-225.06458162,0.00013699,2]
[381840661,1756368198648,-129.38035651,0.00015472,2]
[381840662,1756368200240,-107.21425651,0.00015472,2]
[381840663,1756368200253,-263.40538698,0.00015472,2]
[381840664,1756368200317,-500.0,0.0001573,2]
[381840665,1756368201131,58.51144892,0.00015988,2]
[381840666,1756368203382,-441.48855108,0.00015988,2]
[381840684,1756368632013,-500.0,0.00016246,2]
[381840685,1756368632023,-500.0,0.00016438,2]
[381840686,1756368632034,-500.0,0.00016503,2]
[381840687,1756368632043,-270.0,0.00016773,2]
[381840688,1756368632054,-266.074545,0.00016773,2]
[381840689,1756368632066,-999.71745748,0.00016773,2]
[381840690,1756368632082,-1000.0,0.00016773,2]
[381840691,1756368632093,-294.46071752,0.00016773,2]
[381840692,1756368632103,-1200.0,0.00016773,2]
[381840693,1756368632113,-300.0,0.00016773,2]
[381840694,1756368632122,-500.0,0.00016774,2]
[381840695,1756368632132,-500.0,0.00016774,2]
[381840696,1756368632141,-300.0,0.00016774,2]
[381840697,1756368632150,-500.0,0.00016774,2]
[381840698,1756368632160,-152.683587,0.00016775,2]
[381840699,1756368632171,-847.316413,0.00016775,2]
[381840700,1756368632180,-368.09,0.00016827,2]
[381840701,1756368632190,-1000.0,0.00016834,2]
[381840702,1756368632199,-478.0,0.00017047,2]
[381840703,1756368632209,-250.0,0.00017049,2]
[381840704,1756368632219,-258.11128772,0.00017055,2]
[381840705,1756368632228,-2103.82857579,0.00017056,2]
[381840706,1756368632239,-7702.90039615,0.00017056,2]
[381840707,1756368632273,-778.54212568,0.00017056,2]
[381840708,1756368632284,-4122.2533,0.00017056,2]
[381840711,1756368632334,-370.63653507,0.00017056,2]
[381840713,1756368632345,-2535.37588637,0.00017056,2]
[381840715,1756368632357,-2753.81318094,0.00017056,2]
[381840717,1756368632366,-150.99,0.00017056,2]
[381840720,1756368632375,-494.35321498,0.00017056,2]
[381840722,1756368632387,-9505.63678502,0.00017056,2]
[381840724,1756368632397,-1049.52558573,0.00017056,2]
[381840726,1756368632408,-4261.37441427,0.00017056,2]
[381840728,1756368632418,-2778.62558573,0.00017057,2]
[381840731,1756368632433,-266.3588698,0.00017057,2]
[381840732,1756368632448,-1459.41560526,0.00017057,2]
[381840733,1756368632459,-323.11901486,0.00017057,2]
[381840734,1756368632470,-483.07287045,0.00017057,2]
[381840735,1756368632481,-1537.47542561,0.00017057,2]
[381840736,1756368637826,-260.0,0.00016772,2]
[381840738,1756368638027,-240.0,0.00016772,2]
[381840739,1756368638037,-269.52419763,0.00016772,2]
[381840740,1756368638047,-500.0,0.00016772,2]
[381840741,1756368638055,-500.0,0.00016772,2]
[381840742,1756368638064,-9.59519117,0.00016772,2]
[381840743,1756368638076,-490.40480883,0.00016772,2]
[381840744,1756368638087,-500.0,0.00016772,2]
[381840745,1756368638096,-533.14323234,0.00016772,2]
[381840746,1756368638106,-3151.92262829,0.00017057,2]
[381840747,1756368638116,-4456.28,0.00017057,2]
[381840748,1756368638125,-200.0,0.00017059,2]
[381840749,1756368638135,-347.46,0.00017115,2]
[381840750,1756368638144,-160.0,0.00017116,7]
[381840751,1756368638153,-1486.92,0.00017117,2]
[381840752,1756368638163,-205.15,0.00017167,2]
[381840753,1756368638173,-150.0,0.00017424,2]
[381840754,1756368638182,-274.0,0.00017448,2]
[381840755,1756368638192,-675.15928909,0.00017448,2]
[381840756,1756368638202,-333.41,0.00017519,2]
[381840757,1756368638211,-200.0,0.00017524,2]
[381840758,1756368638221,-182.120979,0.00017524,2]
[381840759,1756368638230,-200.0,0.00017524,2]
[381840760,1756368638240,-151.0,0.00017524,2]
[381840761,1756368638250,-151.0,0.00017524,2]
[381840762,1756368638260,-151.0,0.00017524,2]
[381840763,1756368638269,-151.0,0.00017524,2]
[381840764,1756368638278,-151.0,0.00017524,2]
[381840765,1756368638288,-151.0,0.00017524,2]
[381840766,1756368638297,-151.0,0.00017524,2]
[381840767,1756368638307,-500.0,0.00017524,2]
[381840768,1756368638316,-151.0,0.00017524,2]
[381840769,1756368638325,-151.0,0.00017524,2]
[381840770,1756368638336,-151.0,0.00017524,2]
[381840771,1756368638345,-151.0,0.00017524,2]
[381840772,1756368638354,-151.0,0.00017524,2]
[381840773,1756368638363,-151.0,0.00017524,2]
[381840774,1756368638372,-151.0,0.00017524,2]
[381840775,1756368638381,-500.0,0.00017524,2]
[381840776,1756368638390,-151.0,0.00017524,2]
[381840777,1756368638399,-500.0,0.00017524,2]
[381840778,1756368638408,-500.0,0.00017524,2]
[381840779,1756368638417,-500.0,0.00017524,2]
[381840781,1756368638426,-151.0,0.00017524,2]
[381840783,1756368638435,-500.0,0.00017524,2]
[381840785,1756368638444,-500.0,0.00017524,2]
[381840786,1756368638453,-462.29087217,0.00017524,2]
[381840788,1756368638462,-600.0,0.00017524,2]
[381840790,1756368638471,-600.0,0.00017524,2]
[381840793,1756368638481,-600.0,0.00017524,2]
[381840794,1756368638490,-600.0,0.00017524,2]
[381840796,1756368638499,-600.0,0.00017524,2]
[381840798,1756368638509,-600.0,0.00017524,2]
[381840800,1756368638518,-600.0,0.00017524,2]
[381840802,1756368638528,-600.0,0.00017524,2]
[381840804,1756368638538,-600.0,0.00017524,2]
[381840806,1756368638547,-600.0,0.00017524,2]
[381840808,1756368638556,-600.0,0.00017524,2]
[381840810,1756368638565,-600.0,0.00017524,2]
[381840812,1756368638574,-600.0,0.00017524,2]
[381840814,1756368638584,-500.0,0.00017534,2]
[381840816,1756368638594,-500.0,0.00017579,2]
[381840818,1756368638604,-500.0,0.00017634,2]
[381840820,1756368638613,-1000.0,0.00017639,2]
[381840822,1756368638623,-500.0,0.00017689,2]
[381840824,1756368638632,-500.0,0.00017744,2]
[381840826,1756368638642,-400.0,0.000178,6]
[381840828,1756368638651,-1000.0,0.0001787,3]
[381840830,1756368638661,-1013.21684281,0.00017896,2]
[381840832,1756368638670,-885.53767574,0.00017899,2]
[381840834,1756368638680,-1111.65422311,0.000179,2]
[381840836,1756368638690,-1111.65422311,0.000179,2]
[381840838,1756368638700,-1000.0,0.000179,2]
[381840840,1756368638709,-388.67391342,0.000179,2]
[381840842,1756368638719,-162.97116817,0.000179,2]
[381840844,1756368638729,-900.0,0.000179,6]
[381840846,1756368638738,-2500.0,0.000179,2]